[Event "Titled Tuesday Blitz February 07 Early 2023"]
[White "Belozerov, Andrei"]
[Black "Ter-Sahakyan, Samvel"]
[WhiteFideId "4120213"]
[BlackFideId "13302531"]
[WhiteElo "2461"]
[BlackElo "2617"]
[Result "0-1"]
[Round "06"]
[TimeControl "180+2"]
[Date "2023.02.07"]
[WhiteClock "0:00:02"]
[BlackClock "0:00:05"]

1. e4 {[%clk 0:02:40]}  c5 {[%clk 0:02:59]} 2. Nf3 {[%clk 0:02:40]}  Nc6 {[%clk 0:02:59]} 3. Bb5 {[%clk 0:02:38]}  e5 {[%clk 0:02:59]} 4. O-O {[%clk 0:02:30]}  Bd6 {[%clk 0:03:00]} 5. c3 {[%clk 0:02:30]}  a6 {[%clk 0:03:00]} 6. Ba4 {[%clk 0:02:23]}  b5 {[%clk 0:02:59]} 7. Bc2 {[%clk 0:02:23]}  Nge7 {[%clk 0:02:59]} 8. a4 {[%clk 0:02:22]}  b4 {[%clk 0:02:54]} 9. d4 {[%clk 0:02:22]}  bxc3 {[%clk 0:02:49]} 10. dxe5 {[%clk 0:02:11]}  cxb2 {[%clk 0:02:49]} 11. Bxb2 {[%clk 0:02:08]}  Bc7 {[%clk 0:02:50]} 12. Na3 {[%clk 0:01:51]}  O-O {[%clk 0:02:49]} 13. Nc4 {[%clk 0:01:51]}  Rb8 {[%clk 0:02:39]} 14. Bc3 {[%clk 0:01:34]}  Ng6 {[%clk 0:02:34]} 15. Nd6 {[%clk 0:01:26]}  Ba5 {[%clk 0:02:20]} 16. Qd2 {[%clk 0:01:03]}  Bb4 {[%clk 0:02:19]} 17. Rad1 {[%clk 0:00:55]}  Ncxe5 {[%clk 0:02:11]} 18. Nxe5 {[%clk 0:00:54]}  Nxe5 {[%clk 0:02:12]} 19. f4 {[%clk 0:00:53]}  Nc6 {[%clk 0:02:05]} 20. e5 {[%clk 0:00:51]}  Nd4 {[%clk 0:02:00]} 21. Bd3 {[%clk 0:00:25]}  Qh4 {[%clk 0:00:42]} 22. Rde1 {[%clk 0:00:23]}  Bxc3 {[%clk 0:00:29]} 23. Qxc3 {[%clk 0:00:22]}  Rb3 {[%clk 0:00:29]} 24. Qd2 {[%clk 0:00:19]}  Bb7 {[%clk 0:00:23]} 25. Re3 {[%clk 0:00:19]}  g6 {[%clk 0:00:17]} 26. Rh3 {[%clk 0:00:18]}  Qg4 {[%clk 0:00:13]} 27. Rg3 {[%clk 0:00:18]}  Qe6 {[%clk 0:00:13]} 28. f5 {[%clk 0:00:18]}  Qxe5 {[%clk 0:00:13]} 29. fxg6 {[%clk 0:00:18]}  fxg6 {[%clk 0:00:13]} 30. Bc4+ {[%clk 0:00:18]}  Bd5 {[%clk 0:00:10]} 31. Rxf8+ {[%clk 0:00:16]}  Kxf8 {[%clk 0:00:10]} 32. Bxb3 {[%clk 0:00:16]}  Bxb3 {[%clk 0:00:08]} 33. Qf2+ {[%clk 0:00:15]}  Kg7 {[%clk 0:00:08]} 34. Nc8 {[%clk 0:00:07]}  Ne2+ {[%clk 0:00:07]} 35. Kh1 {[%clk 0:00:06]}  Nxg3+ {[%clk 0:00:07]} 36. hxg3 {[%clk 0:00:06]}  Be6 {[%clk 0:00:07]} 37. a5 {[%clk 0:00:05]}  c4 {[%clk 0:00:07]} 38. Nb6 {[%clk 0:00:05]}  c3 {[%clk 0:00:06]} 39. Qc2 {[%clk 0:00:04]}  Qh5+ {[%clk 0:00:05]} 40. Kg1 {[%clk 0:00:03]}  Qxa5 {[%clk 0:00:05]} 41. Qf2 {[%clk 0:00:02]}  Qe5 {[%clk 0:00:05]} 0-1


[Site "https://www.chess.com"]

[Event "Titled Tuesday Blitz February 07 Early 2023"]
[White "EREBUNI91"]
[Black "Remizov, Yaroslav"]
[BlackFideId "34134015"]
[WhiteElo "2666"]
[BlackElo "2421"]
[Result "0-1"]
[Round "06"]
[TimeControl "180+2"]
[Date "2023.02.07"]
[WhiteClock "0:00:14"]
[BlackClock "0:00:29"]

1. e4 {[%clk 0:02:59]}  c6 {[%clk 0:02:59]} 2. d4 {[%clk 0:02:59]}  d5 {[%clk 0:03:00]} 3. Nc3 {[%clk 0:02:59]}  dxe4 {[%clk 0:03:00]} 4. Nxe4 {[%clk 0:03:00]}  Bf5 {[%clk 0:03:00]} 5. Ng3 {[%clk 0:03:00]}  Bg6 {[%clk 0:03:01]} 6. h4 {[%clk 0:03:00]}  h6 {[%clk 0:03:01]} 7. Nf3 {[%clk 0:03:01]}  e6 {[%clk 0:03:02]} 8. h5 {[%clk 0:02:54]}  Bh7 {[%clk 0:03:02]} 9. Bd3 {[%clk 0:02:55]}  Bxd3 {[%clk 0:03:03]} 10. Qxd3 {[%clk 0:02:56]}  Nf6 {[%clk 0:03:03]} 11. Bd2 {[%clk 0:02:51]}  c5 {[%clk 0:03:02]} 12. O-O-O {[%clk 0:02:36]}  Qd5 {[%clk 0:02:54]} 13. c4 {[%clk 0:02:32]}  Qd7 {[%clk 0:02:46]} 14. d5 {[%clk 0:02:27]}  Nc6 {[%clk 0:02:40]} 15. Qe3 {[%clk 0:02:06]}  Nd4 {[%clk 0:02:25]} 16. Bc3 {[%clk 0:02:00]}  Qa4 {[%clk 0:02:00]} 17. Nxd4 {[%clk 0:01:55]}  cxd4 {[%clk 0:01:59]} 18. Qxd4 {[%clk 0:01:55]}  O-O-O {[%clk 0:01:55]} 19. Kb1 {[%clk 0:01:47]}  exd5 {[%clk 0:01:55]} 20. cxd5 {[%clk 0:01:46]}  Qxd4 {[%clk 0:01:54]} 21. Rxd4 {[%clk 0:01:38]}  Rxd5 {[%clk 0:01:47]} 22. Rhd1 {[%clk 0:01:29]}  Rxd4 {[%clk 0:01:44]} 23. Bxd4 {[%clk 0:01:30]}  Nd7 {[%clk 0:01:30]} 24. Nf5 {[%clk 0:01:22]}  f6 {[%clk 0:01:29]} 25. Re1 {[%clk 0:01:02]}  Kd8 {[%clk 0:01:21]} 26. Re3 {[%clk 0:00:58]}  b6 {[%clk 0:01:16]} 27. Rg3 {[%clk 0:00:48]}  Rh7 {[%clk 0:01:13]} 28. Kc2 {[%clk 0:00:45]}  Ke8 {[%clk 0:01:12]} 29. Kd3 {[%clk 0:00:43]}  Kf7 {[%clk 0:01:11]} 30. Ke4 {[%clk 0:00:43]}  Bc5 {[%clk 0:01:08]} 31. Kd5 {[%clk 0:00:39]}  Bxd4 {[%clk 0:01:07]} 32. Nxd4 {[%clk 0:00:38]}  Rh8 {[%clk 0:01:04]} 33. Kc6 {[%clk 0:00:37]}  Nc5 {[%clk 0:00:57]} 34. Nf5 {[%clk 0:00:30]}  Rg8 {[%clk 0:00:53]} 35. b4 {[%clk 0:00:26]}  Rc8+ {[%clk 0:00:48]} 36. Kd6 {[%clk 0:00:24]}  Ne4+ {[%clk 0:00:44]} 37. Kd7 {[%clk 0:00:22]}  Nxg3 {[%clk 0:00:44]} 38. Nd6+ {[%clk 0:00:22]}  Kf8 {[%clk 0:00:42]} 39. Nxc8 {[%clk 0:00:23]}  Nxh5 {[%clk 0:00:34]} 40. Nxa7 {[%clk 0:00:22]}  Nf4 {[%clk 0:00:34]} 41. b5 {[%clk 0:00:17]}  Nxg2 {[%clk 0:00:34]} 42. Kc6 {[%clk 0:00:16]}  h5 {[%clk 0:00:35]} 43. Kxb6 {[%clk 0:00:15]}  h4 {[%clk 0:00:36]} 44. Kc7 {[%clk 0:00:16]}  h3 {[%clk 0:00:36]} 45. b6 {[%clk 0:00:16]}  h2 {[%clk 0:00:36]} 46. b7 {[%clk 0:00:17]}  h1=Q {[%clk 0:00:36]} 47. b8=Q+ {[%clk 0:00:17]}  Kf7 {[%clk 0:00:37]} 48. Nc6 {[%clk 0:00:16]}  Nf4 {[%clk 0:00:32]} 49. Nd8+ {[%clk 0:00:14]}  Kg6 {[%clk 0:00:30]} 50. Qb4 {[%clk 0:00:14]}  Nd5+ {[%clk 0:00:29]} 0-1


[Site "https://www.chess.com"]

[Event "Titled Tuesday Blitz February 07 Early 2023"]
[White "Gascon Del Nogal, Jose Rafael"]
[Black "Gharibyan, Mamikon"]
[WhiteFideId "3902463"]
[BlackFideId "13308300"]
[WhiteElo "2459"]
[BlackElo "2500"]
[Result "1-0"]
[Round "06"]
[TimeControl "180+2"]
[Date "2023.02.07"]
[WhiteClock "0:00:21"]
[BlackClock "0:00:49"]

1. e4 {[%clk 0:03:00]}  g6 {[%clk 0:02:58]} 2. d4 {[%clk 0:03:00]}  Bg7 {[%clk 0:02:58]} 3. Nc3 {[%clk 0:03:01]}  a6 {[%clk 0:02:58]} 4. Nf3 {[%clk 0:02:56]}  b5 {[%clk 0:02:58]} 5. Be2 {[%clk 0:02:54]}  Bb7 {[%clk 0:02:58]} 6. a3 {[%clk 0:02:49]}  d6 {[%clk 0:02:58]} 7. O-O {[%clk 0:02:46]}  Nd7 {[%clk 0:02:58]} 8. Re1 {[%clk 0:02:46]}  e5 {[%clk 0:02:58]} 9. d5 {[%clk 0:02:44]}  Ne7 {[%clk 0:02:56]} 10. a4 {[%clk 0:02:38]}  b4 {[%clk 0:02:56]} 11. Na2 {[%clk 0:02:38]}  a5 {[%clk 0:02:56]} 12. c3 {[%clk 0:02:38]}  bxc3 {[%clk 0:02:56]} 13. Nxc3 {[%clk 0:02:39]}  O-O {[%clk 0:02:56]} 14. Bb5 {[%clk 0:02:37]}  h6 {[%clk 0:02:54]} 15. Nd2 {[%clk 0:02:15]}  f5 {[%clk 0:02:51]} 16. f3 {[%clk 0:02:14]}  f4 {[%clk 0:02:47]} 17. Nc4 {[%clk 0:02:11]}  g5 {[%clk 0:02:47]} 18. Bd2 {[%clk 0:02:06]}  Nb6 {[%clk 0:02:42]} 19. Nxb6 {[%clk 0:01:50]}  cxb6 {[%clk 0:02:42]} 20. Be2 {[%clk 0:01:49]}  h5 {[%clk 0:02:37]} 21. Nb5 {[%clk 0:01:49]}  Rf7 {[%clk 0:02:37]} 22. Rc1 {[%clk 0:01:49]}  Ng6 {[%clk 0:02:36]} 23. Rc3 {[%clk 0:01:31]}  Rc8 {[%clk 0:02:24]} 24. Qc2 {[%clk 0:01:29]}  Rc5 {[%clk 0:02:12]} 25. Rxc5 {[%clk 0:01:25]}  bxc5 {[%clk 0:02:12]} 26. Qc3 {[%clk 0:01:24]}  g4 {[%clk 0:02:12]} 27. fxg4 {[%clk 0:01:21]}  Nh4 {[%clk 0:02:11]} 28. Rf1 {[%clk 0:01:12]}  Bf8 {[%clk 0:02:06]} 29. Be1 {[%clk 0:01:08]}  hxg4 {[%clk 0:02:04]} 30. Bxg4 {[%clk 0:01:07]}  Rg7 {[%clk 0:02:03]} 31. Be6+ {[%clk 0:01:06]}  Kh8 {[%clk 0:02:00]} 32. Qh3 {[%clk 0:01:06]}  Be7 {[%clk 0:01:59]} 33. g3 {[%clk 0:01:01]}  c4 {[%clk 0:01:57]} 34. Kh1 {[%clk 0:01:00]}  Qf8 {[%clk 0:01:20]} 35. gxh4 {[%clk 0:00:55]}  Qf6 {[%clk 0:01:20]} 36. Nc7 {[%clk 0:00:45]}  Qh6 {[%clk 0:01:14]} 37. Bf5 {[%clk 0:00:39]}  Bf6 {[%clk 0:01:06]} 38. Ne6 {[%clk 0:00:35]}  Rg8 {[%clk 0:01:06]} 39. Qf3 {[%clk 0:00:26]}  c3 {[%clk 0:01:03]} 40. bxc3 {[%clk 0:00:26]}  Ba6 {[%clk 0:01:03]} 41. Rg1 {[%clk 0:00:25]}  Rxg1+ {[%clk 0:00:57]} 42. Kxg1 {[%clk 0:00:26]}  Bxh4 {[%clk 0:00:58]} 43. Qh3 {[%clk 0:00:23]}  Bf2+ {[%clk 0:00:51]} 44. Bxf2 {[%clk 0:00:22]}  Qxh3 {[%clk 0:00:51]} 45. Bxh3 {[%clk 0:00:23]}  Bb5 {[%clk 0:00:48]} 46. axb5 {[%clk 0:00:19]}  a4 {[%clk 0:00:49]} 47. b6 {[%clk 0:00:20]}  a3 {[%clk 0:00:49]} 48. b7 {[%clk 0:00:20]}  a2 {[%clk 0:00:48]} 49. b8=Q+ {[%clk 0:00:21]}  Kh7 {[%clk 0:00:49]} 50. Qa7+ {[%clk 0:00:21]} 1-0


[Site "https://www.chess.com"]

[Event "Titled Tuesday Blitz February 07 Early 2023"]
[White "Shuvalova, Polina"]
[Black "Aitbayev, Aslan"]
[WhiteFideId "24171760"]
[BlackFideId "13704613"]
[WhiteElo "2484"]
[BlackElo "2427"]
[Result "1-0"]
[Round "06"]
[TimeControl "180+2"]
[Date "2023.02.07"]
[WhiteClock "0:00:05"]
[BlackClock "0:00:08"]

1. e4 {[%clk 0:03:00]}  d6 {[%clk 0:02:59]} 2. d4 {[%clk 0:03:00]}  g6 {[%clk 0:02:59]} 3. Nc3 {[%clk 0:03:00]}  Bg7 {[%clk 0:02:59]} 4. Be3 {[%clk 0:02:57]}  a6 {[%clk 0:02:59]} 5. Nf3 {[%clk 0:02:55]}  b5 {[%clk 0:02:57]} 6. h4 {[%clk 0:02:53]}  Nf6 {[%clk 0:02:53]} 7. e5 {[%clk 0:02:36]}  Ng4 {[%clk 0:02:53]} 8. Bf4 {[%clk 0:02:29]}  h5 {[%clk 0:02:50]} 9. a4 {[%clk 0:02:18]}  b4 {[%clk 0:02:48]} 10. Ne4 {[%clk 0:02:18]}  Bb7 {[%clk 0:02:43]} 11. Bd3 {[%clk 0:02:16]}  Nc6 {[%clk 0:02:34]} 12. Qe2 {[%clk 0:01:32]}  dxe5 {[%clk 0:02:28]} 13. dxe5 {[%clk 0:01:31]}  Ngxe5 {[%clk 0:02:23]} 14. Bxe5 {[%clk 0:01:22]}  Nxe5 {[%clk 0:01:59]} 15. Nxe5 {[%clk 0:01:20]}  Bxe5 {[%clk 0:02:00]} 16. Nc5 {[%clk 0:01:06]}  Bxb2 {[%clk 0:01:59]} 17. Nxb7 {[%clk 0:01:02]}  Qc8 {[%clk 0:01:59]} 18. Rb1 {[%clk 0:00:50]}  Bc3+ {[%clk 0:01:58]} 19. Kf1 {[%clk 0:00:51]}  Qxb7 {[%clk 0:01:58]} 20. Be4 {[%clk 0:00:52]}  c6 {[%clk 0:01:57]} 21. Qc4 {[%clk 0:00:52]}  Rc8 {[%clk 0:01:09]} 22. Qxc3 {[%clk 0:00:51]}  O-O {[%clk 0:01:09]} 23. Rxb4 {[%clk 0:00:47]}  Qc7 {[%clk 0:01:09]} 24. Rc4 {[%clk 0:00:45]}  c5 {[%clk 0:01:09]} 25. g3 {[%clk 0:00:44]}  Rfd8 {[%clk 0:00:59]} 26. Kg2 {[%clk 0:00:44]}  Rd6 {[%clk 0:00:59]} 27. Rb1 {[%clk 0:00:42]}  Qd7 {[%clk 0:00:57]} 28. Rb7 {[%clk 0:00:36]}  Qe6 {[%clk 0:00:57]} 29. Bf3 {[%clk 0:00:31]}  Rcd8 {[%clk 0:00:38]} 30. Re4 {[%clk 0:00:30]}  Qf5 {[%clk 0:00:35]} 31. Rexe7 {[%clk 0:00:30]}  Rf6 {[%clk 0:00:36]} 32. Qe3 {[%clk 0:00:21]}  Rd4 {[%clk 0:00:29]} 33. Re8+ {[%clk 0:00:19]}  Kg7 {[%clk 0:00:29]} 34. Rbb8 {[%clk 0:00:20]}  Re6 {[%clk 0:00:19]} 35. Rxe6 {[%clk 0:00:16]}  Qxe6 {[%clk 0:00:19]} 36. Qxe6 {[%clk 0:00:15]}  fxe6 {[%clk 0:00:20]} 37. Rb6 {[%clk 0:00:08]}  Rxa4 {[%clk 0:00:20]} 38. Rxe6 {[%clk 0:00:09]}  Kf7 {[%clk 0:00:20]} 39. Rc6 {[%clk 0:00:09]}  a5 {[%clk 0:00:17]} 40. Rxc5 {[%clk 0:00:09]}  Ra3 {[%clk 0:00:17]} 41. Rc7+ {[%clk 0:00:09]}  Kf6 {[%clk 0:00:17]} 42. Rc6+ {[%clk 0:00:10]}  Kf5 {[%clk 0:00:17]} 43. c4 {[%clk 0:00:07]}  a4 {[%clk 0:00:17]} 44. Ra6 {[%clk 0:00:07]}  Ra1 {[%clk 0:00:17]} 45. c5 {[%clk 0:00:07]}  Ke5 {[%clk 0:00:14]} 46. c6 {[%clk 0:00:07]}  Kd6 {[%clk 0:00:14]} 47. Ra7 {[%clk 0:00:06]}  a3 {[%clk 0:00:15]} 48. c7 {[%clk 0:00:06]}  Kd7 {[%clk 0:00:12]} 49. Bd5 {[%clk 0:00:07]}  Rc1 {[%clk 0:00:10]} 50. Rxa3 {[%clk 0:00:06]}  Rxc7 {[%clk 0:00:08]} 51. Be4 {[%clk 0:00:06]}  Ke7 {[%clk 0:00:07]} 52. Bxg6 {[%clk 0:00:05]}  Kf6 {[%clk 0:00:08]} 53. Bxh5 {[%clk 0:00:05]} 1-0


[Site "https://www.chess.com"]

[Event "Titled Tuesday Blitz February 07 Early 2023"]
[White "Iskusnyh, Sergei"]
[Black "Postny, Evgeny"]
[WhiteFideId "4120027"]
[BlackFideId "2804344"]
[WhiteElo "2440"]
[BlackElo "2549"]
[Result "0-1"]
[Round "06"]
[TimeControl "180+2"]
[Date "2023.02.07"]
[WhiteClock "0:00:11"]
[BlackClock "0:00:10"]

1. d4 {[%clk 0:03:00]}  d5 {[%clk 0:02:58]} 2. c4 {[%clk 0:03:00]}  c6 {[%clk 0:02:59]} 3. Nf3 {[%clk 0:03:00]}  Nf6 {[%clk 0:02:59]} 4. e3 {[%clk 0:03:01]}  Bg4 {[%clk 0:02:58]} 5. h3 {[%clk 0:02:58]}  Bxf3 {[%clk 0:02:58]} 6. Qxf3 {[%clk 0:02:57]}  e6 {[%clk 0:02:59]} 7. Bd3 {[%clk 0:02:53]}  Nbd7 {[%clk 0:02:57]} 8. Nc3 {[%clk 0:02:52]}  Bd6 {[%clk 0:02:55]} 9. cxd5 {[%clk 0:02:48]}  cxd5 {[%clk 0:02:53]} 10. O-O {[%clk 0:02:46]}  O-O {[%clk 0:02:53]} 11. Bd2 {[%clk 0:02:42]}  a6 {[%clk 0:02:51]} 12. Rfc1 {[%clk 0:02:38]}  Qe7 {[%clk 0:02:41]} 13. e4 {[%clk 0:02:10]}  dxe4 {[%clk 0:02:41]} 14. Nxe4 {[%clk 0:02:09]}  Nd5 {[%clk 0:02:16]} 15. Bg5 {[%clk 0:01:58]}  f6 {[%clk 0:02:16]} 16. Bd2 {[%clk 0:01:50]}  Rad8 {[%clk 0:02:13]} 17. Re1 {[%clk 0:01:47]}  Rfe8 {[%clk 0:02:10]} 18. Qh5 {[%clk 0:01:35]}  Nf8 {[%clk 0:02:09]} 19. Bc4 {[%clk 0:01:10]}  Qf7 {[%clk 0:02:01]} 20. Qf3 {[%clk 0:00:49]}  Bb8 {[%clk 0:01:56]} 21. Ba5 {[%clk 0:00:46]}  b6 {[%clk 0:01:51]} 22. Bd2 {[%clk 0:00:46]}  b5 {[%clk 0:01:50]} 23. Bb3 {[%clk 0:00:43]}  Nd7 {[%clk 0:01:37]} 24. Rac1 {[%clk 0:00:37]}  Rc8 {[%clk 0:01:32]} 25. Nc5 {[%clk 0:00:28]}  Nxc5 {[%clk 0:01:29]} 26. dxc5 {[%clk 0:00:28]}  Be5 {[%clk 0:01:22]} 27. Rc2 {[%clk 0:00:20]}  Red8 {[%clk 0:01:11]} 28. Ba5 {[%clk 0:00:20]}  Rd7 {[%clk 0:01:05]} 29. c6 {[%clk 0:00:20]}  Rd6 {[%clk 0:01:05]} 30. c7 {[%clk 0:00:17]}  g6 {[%clk 0:00:47]} 31. Rec1 {[%clk 0:00:17]}  Kg7 {[%clk 0:00:45]} 32. Rc6 {[%clk 0:00:17]}  Rxc6 {[%clk 0:00:40]} 33. Rxc6 {[%clk 0:00:17]}  Qd7 {[%clk 0:00:38]} 34. Rc2 {[%clk 0:00:15]}  Bxc7 {[%clk 0:00:29]} 35. g3 {[%clk 0:00:14]}  Bxa5 {[%clk 0:00:28]} 36. Rxc8 {[%clk 0:00:14]}  Qxc8 {[%clk 0:00:29]} 37. Bxd5 {[%clk 0:00:14]}  exd5 {[%clk 0:00:29]} 38. Qxd5 {[%clk 0:00:15]}  Qc7 {[%clk 0:00:23]} 39. h4 {[%clk 0:00:14]}  Bb6 {[%clk 0:00:23]} 40. Kg2 {[%clk 0:00:14]}  h5 {[%clk 0:00:18]} 41. Qe6 {[%clk 0:00:13]}  a5 {[%clk 0:00:16]} 42. Qd5 {[%clk 0:00:12]}  b4 {[%clk 0:00:16]} 43. b3 {[%clk 0:00:12]}  Bc5 {[%clk 0:00:16]} 44. Qe6 {[%clk 0:00:12]}  Bd6 {[%clk 0:00:16]} 45. Qd5 {[%clk 0:00:12]}  Be5 {[%clk 0:00:16]} 46. Qe6 {[%clk 0:00:10]}  Qb7+ {[%clk 0:00:15]} 47. Kg1 {[%clk 0:00:10]}  Bc3 {[%clk 0:00:15]} 48. Qc4 {[%clk 0:00:10]}  Qa7 {[%clk 0:00:14]} 49. a4 {[%clk 0:00:09]}  Be1 {[%clk 0:00:12]} 50. Qe2 {[%clk 0:00:08]}  Bxf2+ {[%clk 0:00:11]} 51. Qxf2 {[%clk 0:00:09]}  Qxf2+ {[%clk 0:00:11]} 52. Kxf2 {[%clk 0:00:10]}  Kf7 {[%clk 0:00:11]} 53. Ke3 {[%clk 0:00:11]}  Ke6 {[%clk 0:00:12]} 54. Kd4 {[%clk 0:00:11]}  g5 {[%clk 0:00:12]} 55. Ke4 {[%clk 0:00:10]}  f5+ {[%clk 0:00:10]} 56. Kd4 {[%clk 0:00:10]}  Kf6 {[%clk 0:00:10]} 57. Kd5 {[%clk 0:00:08]}  f4 {[%clk 0:00:07]} 58. gxf4 {[%clk 0:00:08]}  gxh4 {[%clk 0:00:07]} 59. Ke4 {[%clk 0:00:08]}  h3 {[%clk 0:00:07]} 60. Kf3 {[%clk 0:00:08]}  Kf5 {[%clk 0:00:08]} 61. Kg3 {[%clk 0:00:08]}  h2 {[%clk 0:00:08]} 62. Kxh2 {[%clk 0:00:09]}  Kxf4 {[%clk 0:00:08]} 63. Kh3 {[%clk 0:00:10]}  Ke4 {[%clk 0:00:09]} 64. Kh4 {[%clk 0:00:11]}  Kd4 {[%clk 0:00:10]} 0-1


[Site "https://www.chess.com"]

[Event "Titled Tuesday Blitz February 07 Early 2023"]
[White "Vaishali, Rameshbabu"]
[Black "Czopor, Maciej"]
[WhiteFideId "5091756"]
[BlackFideId "21805431"]
[WhiteElo "2418"]
[BlackElo "2385"]
[Result "1-0"]
[Round "06"]
[TimeControl "180+2"]
[Date "2023.02.07"]
[WhiteClock "0:01:43"]
[BlackClock "0:01:23"]

1. d4 {[%clk 0:03:00]}  g6 {[%clk 0:02:59]} 2. c4 {[%clk 0:02:58]}  d6 {[%clk 0:02:59]} 3. Nc3 {[%clk 0:02:58]}  Nd7 {[%clk 0:02:59]} 4. Nf3 {[%clk 0:02:55]}  Bg7 {[%clk 0:02:59]} 5. e4 {[%clk 0:02:51]}  e5 {[%clk 0:02:59]} 6. Be2 {[%clk 0:02:51]}  Ne7 {[%clk 0:02:59]} 7. Be3 {[%clk 0:02:49]}  O-O {[%clk 0:02:59]} 8. Qd2 {[%clk 0:02:49]}  f5 {[%clk 0:03:00]} 9. exf5 {[%clk 0:02:42]}  Nxf5 {[%clk 0:03:00]} 10. Bg5 {[%clk 0:02:43]}  Qe8 {[%clk 0:02:58]} 11. Nd5 {[%clk 0:02:37]}  exd4 {[%clk 0:02:16]} 12. Nxc7 {[%clk 0:02:32]}  Qe4 {[%clk 0:02:16]} 13. Nxa8 {[%clk 0:02:24]}  Nc5 {[%clk 0:01:57]} 14. O-O {[%clk 0:02:14]}  d3 {[%clk 0:01:55]} 15. Bd1 {[%clk 0:02:12]}  Qc6 {[%clk 0:01:55]} 16. Rb1 {[%clk 0:01:53]}  Bd7 {[%clk 0:01:42]} 17. b4 {[%clk 0:01:51]}  Ne4 {[%clk 0:01:42]} 18. Qxd3 {[%clk 0:01:51]}  Nxg5 {[%clk 0:01:28]} 19. Nxg5 {[%clk 0:01:44]}  Rxa8 {[%clk 0:01:29]} 20. Bf3 {[%clk 0:01:43]}  Qc7 {[%clk 0:01:23]} 21. Qd5+ {[%clk 0:01:43]} 1-0


[Site "https://www.chess.com"]

[Event "Titled Tuesday Blitz February 07 Early 2023"]
[White "Shimanov, Aleksandr"]
[Black "Olenik Campa, Rudi"]
[WhiteFideId "4198603"]
[BlackFideId "14633264"]
[WhiteElo "2581"]
[BlackElo "2356"]
[Result "1-0"]
[Round "06"]
[TimeControl "180+2"]
[Date "2023.02.07"]
[WhiteClock "0:00:28"]
[BlackClock "0:00:02"]

1. d4 {[%clk 0:02:53]}  Nf6 {[%clk 0:02:59]} 2. Nc3 {[%clk 0:02:46]}  d5 {[%clk 0:02:58]} 3. Bf4 {[%clk 0:02:46]}  e6 {[%clk 0:02:58]} 4. Nb5 {[%clk 0:02:45]}  Na6 {[%clk 0:02:57]} 5. e3 {[%clk 0:02:42]}  c6 {[%clk 0:02:57]} 6. Nc3 {[%clk 0:02:42]}  Nb8 {[%clk 0:02:54]} 7. Nf3 {[%clk 0:02:39]}  Bd6 {[%clk 0:02:53]} 8. Bd3 {[%clk 0:02:37]}  O-O {[%clk 0:02:52]} 9. O-O {[%clk 0:02:36]}  a6 {[%clk 0:02:53]} 10. Qe2 {[%clk 0:02:29]}  Qc7 {[%clk 0:02:52]} 11. Bg3 {[%clk 0:02:26]}  Bxg3 {[%clk 0:02:49]} 12. hxg3 {[%clk 0:02:26]}  c5 {[%clk 0:02:48]} 13. dxc5 {[%clk 0:02:20]}  Qxc5 {[%clk 0:02:38]} 14. e4 {[%clk 0:02:20]}  dxe4 {[%clk 0:02:36]} 15. Nxe4 {[%clk 0:02:20]}  Nxe4 {[%clk 0:02:35]} 16. Qxe4 {[%clk 0:02:21]}  g6 {[%clk 0:02:32]} 17. Qh4 {[%clk 0:02:18]}  Kg7 {[%clk 0:02:27]} 18. g4 {[%clk 0:02:04]}  h6 {[%clk 0:02:00]} 19. g5 {[%clk 0:01:55]}  hxg5 {[%clk 0:02:00]} 20. Nxg5 {[%clk 0:01:54]}  Rh8 {[%clk 0:01:59]} 21. Qf4 {[%clk 0:01:55]}  Qe7 {[%clk 0:01:52]} 22. Rfe1 {[%clk 0:01:52]}  Qf6 {[%clk 0:01:48]} 23. Qxf6+ {[%clk 0:01:32]}  Kxf6 {[%clk 0:01:49]} 24. Ne4+ {[%clk 0:01:33]}  Ke7 {[%clk 0:01:41]} 25. Nc3 {[%clk 0:01:33]}  Kf6 {[%clk 0:01:36]} 26. a4 {[%clk 0:01:30]}  Bd7 {[%clk 0:01:21]} 27. a5 {[%clk 0:01:27]}  Bc6 {[%clk 0:01:20]} 28. Be4 {[%clk 0:01:17]}  Rh5 {[%clk 0:01:03]} 29. b4 {[%clk 0:01:15]}  Rh4 {[%clk 0:00:43]} 30. Rad1 {[%clk 0:01:14]}  Kg7 {[%clk 0:00:33]} 31. Rd8 {[%clk 0:01:09]}  Rh8 {[%clk 0:00:30]} 32. Rxh8 {[%clk 0:01:07]}  Kxh8 {[%clk 0:00:30]} 33. Rd1 {[%clk 0:01:08]}  Bxe4 {[%clk 0:00:19]} 34. Nxe4 {[%clk 0:01:08]}  Nc6 {[%clk 0:00:18]} 35. Nd6 {[%clk 0:00:54]}  Kg7 {[%clk 0:00:12]} 36. c3 {[%clk 0:00:47]}  Rd8 {[%clk 0:00:11]} 37. Kf1 {[%clk 0:00:48]}  Kf8 {[%clk 0:00:07]} 38. Ke1 {[%clk 0:00:47]}  Rd7 {[%clk 0:00:07]} 39. Ne4 {[%clk 0:00:44]}  Rxd1+ {[%clk 0:00:07]} 40. Kxd1 {[%clk 0:00:45]}  Nd8 {[%clk 0:00:07]} 41. Kd2 {[%clk 0:00:45]}  Ke7 {[%clk 0:00:07]} 42. Kd3 {[%clk 0:00:45]}  f5 {[%clk 0:00:07]} 43. Nc5 {[%clk 0:00:46]}  e5 {[%clk 0:00:07]} 44. c4 {[%clk 0:00:29]}  Kd6 {[%clk 0:00:07]} 45. Kc3 {[%clk 0:00:30]}  Kc6 {[%clk 0:00:07]} 46. Nd3 {[%clk 0:00:30]}  Kd6 {[%clk 0:00:06]} 47. b5 {[%clk 0:00:30]}  e4 {[%clk 0:00:04]} 48. Nf4 {[%clk 0:00:30]}  g5 {[%clk 0:00:05]} 49. Nh3 {[%clk 0:00:30]}  Ne6 {[%clk 0:00:04]} 50. Kb4 {[%clk 0:00:30]}  Ke5 {[%clk 0:00:03]} 51. c5 {[%clk 0:00:29]}  axb5 {[%clk 0:00:03]} 52. Kxb5 {[%clk 0:00:29]}  f4 {[%clk 0:00:02]} 53. Kb6 {[%clk 0:00:26]}  e3 {[%clk 0:00:02]} 54. fxe3 {[%clk 0:00:27]}  fxe3 {[%clk 0:00:03]} 55. Ng1 {[%clk 0:00:27]}  Kd4 {[%clk 0:00:02]} 56. c6 {[%clk 0:00:27]}  bxc6 {[%clk 0:00:02]} 57. a6 {[%clk 0:00:28]}  Nc5 {[%clk 0:00:01]} 58. a7 {[%clk 0:00:28]}  Nd7+ {[%clk 0:00:02]} 59. Kc7 {[%clk 0:00:28]}  Ne5 {[%clk 0:00:02]} 60. a8=Q {[%clk 0:00:28]}  Nf7 {[%clk 0:00:02]} 1-0


[Site "https://www.chess.com"]